bitfinex-derivatives/quotes_ETHF0:USTF0_20251006
["timestamp","ask_amount","ask_price","bid_price","bid_amount"]
[1759715547647,3.63895228,4531.3,4531.2,0.76136631]
[1759715548452,3.78905228,4531.3,4531.2,0.76136631]
[1759715549045,3.78905228,4531.3,4531.2,0.53836631]
[1759715549248,3.78905228,4531.3,4531.2,0.00216631]
[1759715549454,3.78905228,4531.3,4531.2,0.31936631]
[1759715555552,3.63895228,4531.3,4531.2,0.53666631]
[1759715555853,3.63895228,4531.3,4531.2,1.93532074]
[1759715556060,3.20965228,4531.3,4531.2,0.75566631]
[1759715556560,3.42085228,4531.3,4531.2,0.75566631]
[1759715558658,3.63425228,4531.3,4531.2,0.53666631]
[1759715558853,3.78435228,4531.3,4531.2,0.00216631]
[1759715559755,3.78435228,4531.3,4531.2,0.33366631]
[1759715560149,3.63425228,4531.3,4531.2,0.76996631]
[1759715560347,3.42085228,4531.3,4531.2,1.95005892]
[1759715561254,3.42085228,4531.3,4531.2,2.17205892]
[1759715562262,3.42085228,4531.3,4531.2,0.99196631]
[1759715564263,3.63425228,4531.3,4531.2,0.99196631]
[1759715564465,3.63425228,4531.3,4531.2,2.17205892]
[1759715564766,3.78435228,4531.3,4531.2,1.73575892]
[1759715565459,3.63425228,4531.3,4531.2,2.17205892]
[1759715565662,3.63425228,4531.3,4531.2,0.99196631]
[1759715567665,3.63425228,4531.3,4531.2,0.77296631]
[1759715568164,3.78465228,4531.3,4531.2,0.77296631]
[1759715568558,3.78465228,4531.3,4531.2,0.33366631]
[1759715568963,3.78465228,4531.3,4531.2,1.18099407]
[1759715569263,0.4375,4530.9,4530.8,1.17882776]
[1759715569457,0.98285,4530.9,4530.8,1.17882776]
[1759715569859,0.54537,4530.7,4530.5,1.17882776]
[1759715570060,3.6453,4530.6,4530.4,1.17882776]
[1759715570260,0.5857,4530.5,4530.4,0.33058124]
[1759715573565,0.2129,4530.5,4530.4,0.75888124]
[1759715574362,3.4298,4530.6,4530.5,0.39718]
[1759715574568,3.6453,4531.2,4531.1,1.15433]
[1759715575863,3.6453,4531.2,4531.1,0.7572]
[1759715576160,3.6453,4531.2,4531.1,0.5465]
[1759715576355,4.19063,4531.2,4531.0,0.1286]
[1759715576558,0.5857,4531.1,4531.0,0.4575]
[1759715577354,0.5857,4531.1,4531.0,0.6751]
[1759715577355,0.4375,4531.1,4531.0,0.6751]
[1759715578062,0.39714,4531.0,4530.6,0.3289]
[1759715578265,3.6453,4530.7,4530.6,1.16567]
[1759715578860,3.6453,4530.7,4530.6,0.94807]
[1759715579066,3.6453,4530.7,4530.6,0.7685]
[1759715579269,3.4207,4530.7,4530.6,0.9792]
[1759715579464,3.2078,4530.7,4530.6,0.9792]
[1759715581264,3.7935,4530.7,4530.6,0.5465]
[1759715581470,0.5857,4530.5,4530.4,0.00168124]
[1759715581770,0.8077,4530.5,4530.4,0.00168124]
[1759715584167,0.8077,4530.5,4530.4,0.33058124]
[1759715584374,0.4349,4530.5,4530.4,0.75888124]
[1759715584768,0.4375,4530.5,4530.4,0.75888124]
[1759715587773,0.2129,4530.5,4530.4,0.75888124]
[1759715587970,0.2129,4530.6,4530.5,0.95408]
[1759715588170,0.2129,4530.6,4530.5,1.28298]
[1759715588974,0.2129,4530.6,4530.5,0.8858]
[1759715591471,3.2078,4530.7,4530.6,1.15437]
[1759715591675,0.39897228,4531.3,4530.6,1.15437]
[1759715591676,3.20965228,4531.3,4531.2,1.15432]
[1759715592879,3.20965228,4531.3,4531.2,2.33083816]
[1759715593272,3.20965228,4531.3,4531.2,1.15432]
[1759715595878,3.64715228,4531.3,4531.2,1.15432]
[1759715596279,0.43935228,4531.3,4531.2,1.15432]
[1759715596480,0.00185228,4531.3,4531.2,1.15432]
[1759715600082,0.21705228,4531.3,4531.2,1.15432]
[1759715600380,0.43085228,4531.3,4531.2,1.15432]
[1759715600679,0.21705228,4531.3,4531.2,1.37632]
[1759715600875,0.00185228,4531.3,4531.2,1.37632]
[1759715602076,0.43085228,4531.3,4531.2,1.37632]
[1759715602378,0.97446,4530.8,4530.6,1.50911816]
[1759715602585,0.97447,4530.6,4530.5,0.3326]
[1759715603784,0.97447,4530.6,4530.5,0.4576]
[1759715604186,0.1483,4530.5,4530.4,0.00168124]
[1759715604489,0.7993,4530.5,4530.4,0.00168124]
[1759715604684,5.7993,4530.5,4530.4,0.00168124]
[1759715607080,0.7993,4530.5,4530.4,0.33428124]
[1759715607482,0.651,4530.5,4530.4,0.55768124]
[1759715608181,0.7993,4530.5,4530.4,0.33428124]
[1759715608382,5.7993,4530.5,4530.4,0.00168124]
[1759715609681,5.7993,4530.5,4529.5,0.4671]
[1759715609682,0.1483,4530.4,4529.5,0.4671]
[1759715609884,0.39727,4529.6,4529.4,0.3326]
[1759715610184,0.97462,4528.9,4528.8,0.3326]
[1759715610484,0.2152,4528.7,4528.6,0.556]
[1759715610679,0.429,4528.7,4528.6,0.55872671]
[1759715610880,0.429,4528.7,4528.6,0.76852671]
[1759715612381,3.645,4529.0,4528.9,0.62072]
[1759715612687,3.423,4529.0,4528.9,1.16312]
[1759715614185,0.1489,4528.7,4528.6,0.00272671]
[1759715614484,0.5808,4528.7,4528.6,0.33552671]
[1759715614785,0.4319,4528.7,4528.6,0.55102671]
[1759715616685,0.5808,4528.7,4528.6,0.33552671]
[1759715616986,0.5808,4528.7,4528.6,0.00272671]
[1759715617186,0.5808,4528.7,4528.6,0.33552671]
[1759715617388,0.5808,4528.7,4528.6,0.00272671]
[1759715617691,0.5808,4528.7,4528.6,0.33552671]
[1759715617891,0.5808,4528.7,4528.6,0.55102671]
[1759715618090,0.4319,4528.7,4528.6,0.55102671]
[1759715618690,0.5808,4528.7,4528.6,0.00272671]
[1759715618991,1.36094042,4528.7,4528.6,0.00272671]
[1759715620887,3.2078,4529.0,4528.8,0.95843]
[1759715621086,3.2078,4529.0,4528.9,1.55674042]
[1759715621279,3.2078,4529.0,4528.9,0.7766]
[1759715621985,3.6397,4529.0,4528.9,0.7766]
[1759715624692,3.6397,4529.0,4528.7,0.3328]
[1759715624693,0.1489,4528.9,4528.7,0.3328]
[1759715624888,0.1489,4528.9,4528.6,0.40007671]
[1759715624889,0.1489,4528.7,4528.6,0.00272671]
[1759715625088,1.36094042,4528.7,4528.6,0.00272671]
[1759715625390,0.5808,4528.7,4528.6,0.33552671]
[1759715628694,1.36094042,4528.7,4528.6,0.00272671]
[1759715631691,1.36094042,4528.7,4527.5,0.125]
[1759715631692,0.99338,4528.6,4527.8,0.3276]
[1759715631895,4.55634042,4527.9,4527.8,0.3276]
[1759715632583,3.6278,4527.9,4527.8,0.7406]
[1759715632788,3.41673735,4527.9,4527.8,0.7431946]
[1759715633296,3.63873735,4527.9,4527.8,0.7431946]
[1759715633696,3.85153735,4527.9,4527.8,0.7431946]
[1759715633897,3.99993735,4527.9,4527.8,0.0025946]
[1759715637401,4.78007777,4527.9,4527.8,0.0025946]
[1759715637789,3.99993735,4527.9,4527.8,0.2096946]
[1759715637992,3.41673735,4527.9,4527.8,0.7431946]
[1759715638201,3.62953735,4527.9,4527.8,0.7431946]
[1759715640201,3.77793735,4527.9,4527.8,0.0025946]
[1759715640399,4.55807777,4527.9,4527.8,0.0025946]
[1759715640693,3.62953735,4527.9,4527.8,0.7431946]
[1759715640899,3.41673735,4527.9,4527.8,0.7431946]
[1759715641400,3.62953735,4527.9,4527.8,0.7431946]
[1759715645998,1.16526117,4529.7,4527.8,6.28473502]
[1759715646206,1.18894965,4530.7,4529.7,0.99314]
[1759715646402,0.325,4530.9,4530.8,0.39715]
[1759715646698,0.325,4530.9,4530.6,3.2078]
[1759715646699,0.325,4530.8,4530.7,1.17651816]
[1759715646905,0.325,4530.8,4530.6,3.2078]
[1759715646906,0.745,4530.7,4530.6,3.2078]
[1759715647094,0.74719838,4530.7,4530.6,3.2078]
[1759715647298,6.91389895,4530.7,4530.6,3.2078]
[1759715647698,6.91389895,4530.7,4528.7,1.35251953]
[1759715647699,0.1342,4530.5,4528.7,1.35251953]
[1759715647894,0.745,4528.8,4528.2,3.2078]
[1759715648208,0.1342,4529.5,4528.9,0.2071]
[1759715648500,0.466,4529.5,4529.4,4.32708]
[1759715648701,0.222,4529.6,4529.4,4.63889328]
[1759715648894,0.222,4529.6,4529.5,1.05241328]
[1759715649900,0.2072,4530.0,4529.9,0.7406]
[1759715650096,3.2078,4530.6,4529.9,0.84531328]
[1759715650299,0.3414,4530.5,4530.4,0.2071]
[1759715650497,0.5634,4530.5,4530.4,0.51891328]
[1759715650704,0.8884,4530.5,4530.4,0.51891328]
[1759715651006,0.4592,4530.0,4529.4,3.9484]
[1759715651206,0.6664,4530.0,4529.9,0.413]
[1759715653301,0.53138,4530.5,4530.3,0.2071]
[1759715653302,0.5322,4530.4,4530.3,0.2071]
[1759715653506,0.967,4530.4,4530.3,0.2071]
[1759715656598,0.967,4530.4,4530.3,0.413]
[1759715656599,0.745,4530.4,4530.3,0.413]
[1759715656805,0.1342,4530.5,4530.4,0.7406]
[1759715656806,0.2072,4530.5,4530.4,0.7406]
[1759715657100,0.5322,4530.5,4530.4,0.7406]
[1759715657705,0.5322,4530.5,4530.4,4.34559]
[1759715658313,0.00219838,4530.7,4530.6,1.19267]
[1759715658705,0.00896454,4530.9,4530.8,0.83666]
[1759715658910,0.00896454,4530.9,4530.8,1.19266]
[1759715659815,3.98794042,4531.6,4530.8,1.19266]
[1759715659816,3.2078,4531.6,4530.8,5.83666]
[1759715660014,3.2078,4531.6,4531.5,0.4395]
[1759715660214,3.2078,4532.2,4531.9,0.4395]
[1759715660513,0.5685,4532.2,4532.1,0.7955]
[1759715660713,0.1433,4532.5,4531.9,3.4302]
[1759715660714,0.9317,4532.0,4531.9,3.4302]
[1759715660916,0.93336455,4532.0,4531.9,3.43236316]
[1759715662118,0.93336455,4532.0,4531.9,0.00216316]
[1759715662825,0.93336455,4532.0,4531.9,0.30451974]
[1759715667112,0.93336455,4532.0,4531.9,0.52691974]
[1759715667720,1.01206455,4532.0,4531.9,4.30781974]
[1759715668117,0.00166455,4532.0,4531.9,4.30781974]
[1759715668423,0.00166455,4532.0,4531.9,9.30781974]
[1759715671534,0.7884,4532.4,4532.3,0.2224]
[1759715671834,0.7884,4532.4,4532.3,0.30235658]
[1759715672538,1.57077689,4532.4,4532.3,0.30235658]
[1759715675133,9.93347999,4532.4,4532.3,0.30235658]
[1759715675531,1.3207,4531.5,4531.4,3.2078]
[1759715675732,1.5427,4531.5,4531.4,3.2078]
[1759715676134,1.5427,4531.5,4530.6,1.49419311]
[1759715676135,0.5765,4530.8,4530.7,3.9862]
[1759715676333,0.5765,4530.8,4530.7,5.15169311]
[1759715676533,0.5765,4530.8,4530.7,5.15424838]
[1759715677030,0.7939,4530.8,4530.7,3.66005527]
[1759715677736,0.5765,4530.8,4530.7,3.98875527]
[1759715678530,0.222,4531.1,4530.9,0.3287]
[1759715678734,0.222,4531.1,4531.0,0.7784]
[1759715679035,0.4575,4531.1,4531.0,0.7784]
[1759715679242,0.7985,4531.1,4531.0,0.7784]
[1759715680335,0.7985,4531.1,4531.0,1.5587182]
[1759715680935,1.0159,4531.1,4531.0,0.7803182]
[1759715681138,1.32074,4531.0,4530.9,0.7803182]
[1759715681337,1.32074,4531.0,4530.3,1.16549311]
[1759715681338,0.4529,4530.4,4530.3,1.16549311]
[1759715681542,0.39724,4529.9,4529.8,1.16549311]
[1759715681735,0.85014,4529.9,4529.8,1.16549311]
[1759715681930,1.19114,4529.9,4529.7,1.16549311]
[1759715682133,0.7939,4529.8,4529.7,1.16549311]
[1759715682334,1.19115,4529.7,4529.6,3.4382]
[1759715682629,1.19115,4529.7,4529.6,3.65946735]
[1759715683142,1.19115,4529.7,4529.6,3.20976735]
[1759715683344,1.19115,4529.7,4529.6,3.44016735]
[1759715684136,1.19115,4529.7,4529.6,3.65946735]
[1759715685141,0.7939,4529.7,4529.6,3.65946735]
[1759715685337,0.7939,4529.7,4529.6,3.98816735]
[1759715685533,0.99289,4530.9,4529.6,3.65946735]
[1759715685739,1.1911,4530.3,4530.2,0.4497]
[1759715689340,0.3299,4530.7,4530.2,0.7878]
[1759715689540,0.5478,4530.7,4530.6,0.8023]
[1759715690345,0.3299,4530.7,4530.6,0.8023]
[1759715690645,3.2078,4530.8,4530.5,0.39718]
[1759715690646,1.38212,4531.2,4531.1,0.8023]
[1759715690942,1.38212,4531.2,4531.1,0.4642]
[1759715691247,0.5478,4531.2,4531.1,0.8023]
[1759715691445,3.2078,4531.3,4531.2,0.8023]
[1759715692645,3.7556,4531.3,4531.2,0.8023]
[1759715695639,3.9708,4531.3,4531.2,0.8023]
[1759715696947,3.9708,4531.3,4531.2,0.4642]
[1759715697146,0.2179,4530.7,4530.6,1.08337]
[1759715697347,0.5478,4530.7,4530.6,1.42147]
[1759715698447,0.5478,4530.7,4530.6,0.4642]
[1759715698448,0.763,4530.7,4530.6,0.4642]
[1759715698648,1.16017,4530.7,4530.6,0.4642]
[1759715698849,0.763,4530.7,4530.6,0.8023]
[1759715700450,1.16017,4530.7,4530.6,0.8023]
[1759715703047,0.9002,4530.5,4530.4,1.16549311]
[1759715703648,0.763,4530.4,4530.3,3.2078]
[1759715704643,0.763,4530.4,4530.0,1.16549311]
[1759715704644,0.4331,4530.4,4530.0,1.16549311]
[1759715704954,1.16025,4529.7,4529.6,0.00196735]
[1759715706753,1.16025,4529.7,4529.6,1.16746046]
[1759715707548,1.16025,4529.7,4529.6,0.00196735]
[1759715707945,1.16025,4529.7,4529.6,0.58944298]
[1759715707946,9.36805,4529.7,4529.6,0.58944298]
[1759715708145,6.16025,4529.7,4529.6,0.58944298]
[1759715710358,6.16025,4529.7,4529.6,0.00196735]
[1759715711551,0.763,4529.7,4529.6,0.81844298]
[1759715711748,0.985,4529.7,4529.6,1.39174298]
[1759715712149,0.763,4529.7,4529.6,1.78900298]
[1759715712350,0.763,4529.7,4529.6,1.20152735]
[1759715712554,3.2078,4530.2,4529.7,0.39725]
[1759715712754,0.5478,4530.2,4530.1,0.8023]
[1759715713151,0.5478,4530.2,4530.1,1.38932965]
[1759715713655,0.763,4530.2,4530.1,1.38932965]
[1759715717660,0.5636,4530.3,4530.2,1.18491]
[1759715717857,0.7964,4530.3,4530.2,0.7827047]
[1759715718061,0.7964,4530.3,4530.2,1.0155047]
[1759715718457,0.7964,4530.3,4530.2,1.2428047]
[1759715718659,0.7964,4530.3,4530.2,4.7782047]
[1759715718859,0.5636,4530.3,4530.2,4.7782047]
[1759715719564,0.7964,4530.3,4530.2,4.7782047]
[1759715723263,0.7964,4530.3,4530.2,3.9955]
[1759715728476,0.99413,4530.0,4529.9,0.78312113]
[1759715728672,0.99413,4530.0,4529.6,0.00196735]
[1759715728673,2.15209208,4530.0,4529.8,0.78312113]
[1759715728874,1.19364,4529.8,4529.6,0.78508848]
[1759715729073,0.7964,4529.7,4529.6,0.00196735]
[1759715730381,0.7964,4529.7,4529.6,0.78508848]
[1759715733077,0.7964,4529.7,4529.6,0.23476735]
[1759715733481,0.5636,4529.7,4529.6,0.78166735]
[1759715733680,0.3432,4529.9,4529.8,0.2141]
[1759715733984,0.7755,4530.1,4530.0,0.745]
[1759715734780,0.7755,4530.1,4530.0,1.52848046]
[1759715735285,0.988,4530.1,4530.0,1.52848046]
[1759715735686,0.988,4530.1,4530.0,0.745]
[1759715740288,0.39729,4529.3,4529.1,1.00589166]
[1759715740491,0.8933,4528.0,4527.9,6.13653936]
[1759715740792,1.89515855,4528.0,4527.9,3.9528]
[1759715741089,0.6448,4528.0,4527.9,3.9528]
[1759715741288,0.64661669,4528.0,4527.9,3.95483982]
[1759715741589,0.83151669,4528.0,4527.9,3.95483982]
[1759715745289,0.22381669,4528.0,4527.9,3.95483982]
[1759715745497,0.00181669,4528.0,4527.9,8.95483982]
[1759715749398,0.78771669,4528.0,4527.9,3.95483982]
[1759715749590,0.78771669,4528.0,4527.9,0.74703982]
[1759715750599,0.45041669,4528.0,4527.9,0.74703982]
[1759715752900,0.00181669,4528.0,4527.9,0.74703982]
[1759715759299,0.00181669,4528.0,4527.9,1.36644982]
[1759715759497,0.00181669,4528.0,4527.9,0.96903982]
[1759715760795,0.00181669,4528.0,4527.9,1.36644982]
[1759715761704,0.00181669,4528.0,4527.9,0.96903982]
[1759715763702,0.00181669,4528.0,4527.9,5.96903982]
[1759715773206,0.3373,4529.4,4528.0,1.1303]
[1759715773409,1.18318,4529.4,4529.3,0.7934]
[1759715773609,1.66567665,4529.4,4529.3,0.7934]
[1759715774307,1.18547187,4529.4,4529.3,0.7934]
[1759715774903,0.22719187,4529.4,4529.3,0.7934]
[1759715775104,0.22719187,4529.4,4529.3,4.0012]
[1759715775310,0.00229187,4529.4,4529.3,4.78105855]
[1759715775713,0.00229187,4529.4,4529.3,5.00305855]
[1759715780610,0.00229187,4529.4,4529.3,4.2232]
[1759715783705,0.81369187,4529.4,4529.3,4.0012]
[1759715787107,0.81369187,4529.4,4529.3,3.4393]
[1759715787311,0.81369187,4529.4,4528.9,0.3317]
[1759715787312,0.39732,4529.0,4528.9,0.3317]
[1759715787513,1.20872,4529.0,4528.9,1.0264]
[1759715787716,0.8114,4529.0,4528.9,1.0264]
[1759715788320,0.2289,4529.0,4528.9,1.0264]
[1759715789715,0.5742,4529.3,4529.2,0.8044]
[1759715791123,0.2289,4529.3,4529.2,0.8044]
[1759715791417,0.00229187,4529.4,4529.3,1.20169]
[1759715791613,0.00229187,4529.4,4529.3,1.98154855]
[1759715796817,0.23009187,4529.4,4529.3,0.8044]
[1759715797011,0.80879187,4529.4,4529.3,0.7852]
[1759715797619,0.80879187,4529.4,4529.2,3.2078]
[1759715797620,0.39729,4529.3,4529.2,3.2078]
[1759715797821,0.75169,4529.3,4529.2,3.2078]
[1759715798023,1.20379,4529.3,4529.2,3.2078]
[1759715798321,1.20379,4529.3,4529.2,3.4386]
[1759715798722,1.20379,4529.3,4529.2,4.0023]
[1759715799718,1.20379,4529.3,4529.2,0.7945]
[1759715800720,0.8065,4529.3,4529.2,0.7945]
[1759715801521,0.8065,4529.3,4529.2,1.1918]
[1759715801822,0.2278,4529.3,4529.2,0.7945]
[1759715802325,0.2278,4529.3,4529.2,4.0023]
[1759715807924,0.1384,4529.0,4528.5,1.56526973]
[1759715808129,0.7907,4528.3,4528.2,3.7872]
[1759715808422,0.7907,4528.3,4528.2,4.0085]
[1759715810431,1.18804,4528.7,4528.6,0.8007]
[1759715814129,1.18804,4528.7,4528.6,0.5794]
[1759715814328,1.18804,4528.7,4528.6,0.4443]
[1759715814329,0.7907,4528.7,4528.6,0.4443]
[1759715814931,0.7907,4528.7,4528.6,0.8007]
[1759715815730,0.7907,4528.7,4528.6,0.5794]
[1759715815935,1.18808,4528.3,4528.2,3.4308]
[1759715816232,1.3265,4528.0,4527.9,0.22503982]
[1759715816430,1.3265,4528.0,4527.9,0.58143982]
[1759715816735,1.3265,4528.0,4527.9,0.80273982]
[1759715817338,1.1881,4528.0,4527.9,0.80273982]
[1759715820134,1.1881,4528.0,4527.9,0.58143982]
[1759715820340,1.3265,4528.0,4527.9,0.00203982]
[1759715820734,0.39746,4527.3,4527.2,0.3564]
[1759715820929,1.18816,4527.3,4527.2,0.5794]
[1759715821127,0.39748,4527.1,4527.0,3.2078]
[1759715821331,0.85268,4527.1,4527.0,3.2078]
[1759715821534,1.18818,4527.1,4527.0,3.2078]
[1759715821736,0.63724,4526.5,4526.4,0.8007]
[1759715822039,1.18824,4526.5,4526.4,0.80241993]
[1759715822830,6.54864,4526.5,4526.4,0.00171993]
[1759715824137,6.1511,4526.5,4525.3,3.5642]
[1759715824336,0.7907,4525.4,4525.3,3.7872]
[1759715825342,0.7928061,4525.4,4525.3,3.78920507]
[1759715825646,0.7928061,4525.4,4525.3,3.43280507]
[1759715826144,0.7928061,4525.4,4525.3,3.20980507]
[1759715826928,5.7928061,4525.4,4525.3,3.20980507]
[1759715827129,5.7928061,4525.4,4524.5,0.3564]
[1759715827130,0.7907,4524.6,4524.5,3.2078]
[1759715827344,1.94885186,4524.6,4524.5,3.2078]
[1759715827736,0.2155,4524.1,4524.0,4.1477]
[1759715827936,0.7907,4524.1,4524.0,4.0085]
[1759715828136,0.7907,4524.1,4524.0,4.01019167]
[1759715828340,1.0127,4524.1,4524.0,3.78889167]
[1759715829142,1.0127,4524.1,4524.0,4.01019167]
[1759715829339,0.3355,4524.5,4524.0,3.79299167]
[1759715829539,3.2078,4524.9,4524.5,0.1392]
[1759715829737,3.9985,4524.9,4524.8,0.8007]
[1759715829942,4.2205,4524.9,4524.8,0.8007]
[1759715830434,3.9985,4524.9,4524.8,0.8007]
[1759715830636,3.2078,4524.9,4524.8,0.8007]
[1759715830832,0.2241061,4525.4,4525.3,0.8007]
[1759715831043,0.0021061,4525.4,4525.3,0.8007]
[1759715831645,0.2176061,4525.4,4525.3,0.8007]
[1759715832243,0.7928061,4525.4,4525.3,0.223]
[1759715833047,0.7928061,4525.4,4525.3,0.5794]
[1759715833240,0.7928061,4525.4,4525.3,0.8007]
[1759715834242,1.0148061,4525.4,4525.3,0.8007]
[1759715834644,0.0021061,4525.4,4525.3,0.8007]
[1759715834851,0.2241061,4525.4,4525.3,0.8007]
[1759715835748,0.0021061,4525.4,4525.3,0.8007]
[1759715843850,0.0021061,4525.4,4525.3,5.8007]
[1759715844057,3.2078,4526.5,4526.3,1.19385]
[1759715844247,3.2078,4527.1,4527.0,0.133]
[1759715844454,3.2078,4527.1,4527.0,0.9293]
[1759715845056,3.21011005,4527.1,4527.0,0.9293]
[1759715845254,3.44341005,4527.1,4527.0,0.9293]
[1759715845455,3.79331005,4527.1,4527.0,0.9293]
[1759715845845,3.44341005,4527.1,4527.0,0.9293]
[1759715846056,3.21011005,4527.1,4527.0,0.9293]
[1759715846555,3.44341005,4527.1,4527.0,0.9293]
[1759715846952,0.00231005,4527.1,4527.0,0.9293]
[1759715848243,0.00231005,4527.1,4527.0,5.9293]
[1759715848553,3.791,4528.2,4528.1,0.7963]
[1759715848750,3.2078,4528.2,4528.1,0.7963]
[1759715849550,0.00190815,4528.2,4528.1,0.79862153]
[1759715852950,3.6051,4529.2,4528.1,0.34452153]
[1759715852951,0.4847,4529.0,4528.1,0.34452153]
[1759715853150,0.4495,4529.0,4528.9,0.7963]
[1759715853456,0.8017,4529.0,4528.9,0.2336]
[1759715853651,0.9345,4529.0,4528.9,0.2336]
[1759715853852,0.9345,4529.0,4528.9,0.5906]
[1759715854052,0.93616209,4529.0,4528.9,0.5906]
[1759715855056,0.80336209,4529.0,4528.9,0.8314]
[1759715856050,0.2247,4528.7,4528.1,0.00232153]
[1759715856255,0.8105,4528.3,4528.2,1.0415]
[1759715856957,0.8105,4528.3,4528.2,0.8195]
[1759715862457,0.8105,4528.9,4528.8,0.2217]
[1759715862662,0.8105,4528.9,4528.8,0.8195]
[1759715862858,0.2247,4528.9,4528.8,0.8195]
[1759715863062,0.00166209,4529.0,4528.9,1.21682]
[1759715863358,0.22636209,4529.0,4528.9,1.21682]
[1759715864161,0.00166209,4529.0,4528.9,1.21682]
[1759715864864,0.57856209,4529.0,4528.9,1.21682]
[1759715865060,0.00166209,4529.0,4528.9,1.21682]
[1759715865257,0.4583,4528.2,4527.0,3.2078]
[1759715865458,0.1328,4527.5,4526.9,0.2217]
[1759715865658,0.2247,4527.5,4527.4,1.24289232]
[1759715865965,0.2247,4527.9,4527.8,0.4625]
[1759715866162,0.2247,4527.9,4527.8,0.8195]
[1759715866365,0.2247,4528.0,4527.9,0.8195]
[1759715866562,0.5769,4528.0,4527.9,0.8195]
[1759715869766,0.8105,4528.0,4527.9,0.8195]
[1759715870166,0.8105,4528.0,4527.9,0.2217]
[1759715870362,0.8105,4528.0,4527.8,0.00283659]
[1759715870363,1.20861,4527.9,4527.8,0.00283659]
[1759715871368,1.20861,4527.9,4527.8,0.23203659]
[1759715872065,1.20861,4527.9,4527.8,0.00283659]
[1759715874269,1.20861,4527.9,4527.8,0.23203659]
[1759715876371,0.8112,4527.9,4527.8,0.23203659]
[1759715879772,0.8112,4527.9,4527.8,0.55603659]
[1759715879972,0.8112,4527.9,4527.8,0.78343659]
[1759715881171,3.60518,4528.3,4527.8,0.78343659]
[1759715881378,4.63838,4528.3,4528.2,0.5532]
[1759715881675,5.1274901,4528.3,4528.2,0.5532]
[1759715881870,5.1274901,4528.3,4528.2,0.2292]
[1759715882273,5.1274901,4528.3,4527.8,0.40025659]
[1759715882574,4.63838,4528.3,4527.8,0.40025659]
[1759715882774,0.8112,4528.3,4528.2,0.7806]
[1759715883073,0.8112,4528.3,4528.2,1.17798]
[1759715883674,0.2272,4528.5,4528.4,0.85397]
[1759715883867,0.2272,4528.5,4528.4,1.17797]
[1759715884067,3.7904,4528.8,4528.7,1.17794]
[1759715884274,4.27945453,4528.8,4528.7,1.17794]
[1759715884470,4.50805453,4528.8,4528.7,1.17794]
[1759715885068,1.30025453,4528.8,4528.7,1.17794]
[1759715885268,1.30025453,4528.8,4528.7,0.7806]
[1759715885468,1.30025453,4528.8,4528.7,0.5532]
[1759715885776,1.30025453,4528.8,4528.7,0.2292]
[1759715885777,4.50805453,4528.8,4528.7,0.2292]
[1759715887076,0.8112,4528.2,4528.1,0.324]
[1759715887276,0.4558,4528.2,4527.9,0.324]
[1759715887481,0.8112,4528.0,4527.9,0.95061]
[1759715887682,0.8112,4528.0,4527.9,1.17801]
[1759715889382,0.9496,4528.0,4527.9,0.7806]
[1759715890582,0.9496,4528.0,4527.9,0.2292]
[1759715890782,0.9496,4528.0,4527.9,0.5532]
[1759715891079,0.9496,4528.0,4527.9,0.2292]
[1759715891283,2.12740232,4528.0,4527.8,0.00283659]
[1759715893676,5.0,4527.9,4527.8,0.00283659]
[1759715893883,0.8112,4526.9,4526.8,3.761]
[1759715894381,0.8112,4526.9,4526.8,3.9884]
[1759715894782,0.8112,4526.9,4526.8,3.9900535]
[1759715896599,0.4558,4526.9,4526.8,3.9900535]
[1759715899202,0.8052,4526.9,4526.8,0.7822535]
[1759715900295,0.78039232,4527.3,4527.2,0.2348]
[1759715900296,0.2207,4527.3,4527.2,0.2348]
[1759715900601,0.7865,4527.3,4527.2,0.7856]
[1759715902393,0.7865,4527.3,4527.2,0.2175]
[1759715903200,0.75785,4527.5,4527.3,0.3333]
[1759715903201,0.3494,4527.5,4527.3,0.3333]
[1759715903399,0.6591,4528.0,4527.9,0.5508]
[1759715903597,1.14833632,4528.0,4527.9,0.7856]
[1759715903902,1.49773632,4528.0,4527.9,0.7856]
[1759715905400,1.27573632,4528.0,4527.9,0.7856]
[1759715906999,1.41503632,4528.0,4527.9,0.7856]
[1759715907206,1.41503632,4528.0,4527.9,0.5508]
[1759715907701,1.27573632,4528.0,4527.9,0.7856]
[1759715908009,3.2078,4528.2,4528.1,0.4523]
[1759715908199,3.2078,4528.2,4528.1,1.56599232]
[1759715908701,3.2078,4528.7,4528.6,0.3333]
[1759715909000,0.2164,4528.7,4528.6,0.7856]
[1759715909200,0.7865,4528.7,4528.6,0.7856]
[1759715913111,0.00166209,4529.0,4528.9,0.7856]
[1759715913112,0.56746209,4529.0,4528.9,0.7856]
[1759715913307,0.78816209,4529.0,4528.9,0.7856]
[1759715914106,0.00166209,4529.0,4528.9,0.7856]
[1759715916406,0.00166209,4529.0,4528.9,3.9934]
[1759715917714,0.00166209,4529.0,4528.9,4.16291627]
[1759715920008,0.00166209,4529.0,4528.9,4.16131627]
[1759715921013,0.00166209,4529.0,4528.9,4.38331627]
[1759715922417,0.00166209,4529.0,4528.9,4.2138]
[1759715925018,1.18719161,4531.2,4529.4,0.99319]
[1759715925208,0.4421,4530.7,4530.6,3.2078]
[1759715925516,0.7871,4530.7,4530.6,0.4465]
[1759715925909,0.7871,4530.7,4530.6,0.7625]
[1759715926110,0.78899242,4530.7,4530.6,0.76468899]
[1759715928916,0.78899242,4530.7,4530.6,0.23268899]
[1759715929114,0.78899242,4530.7,4530.6,0.54738899]
[1759715929322,0.78899242,4530.7,4530.6,0.00218899]
[1759715933221,0.78899242,4530.7,4530.6,0.52578899]
[1759715934122,0.78899242,4530.7,4530.6,0.21108899]
[1759715938013,0.78899242,4530.7,4530.6,0.52578899]
[1759715938216,0.78899242,4530.7,4530.6,0.73988899]
[1759715940220,1.18616242,4530.7,4530.6,0.73988899]
[1759715940823,1.18616242,4530.7,4530.6,0.00218899]
[1759715941627,1.18616242,4530.7,4530.6,0.52578899]
[1759715941816,1.18616242,4530.7,4530.6,0.21108899]
[1759715942019,1.18616242,4530.7,4530.6,0.00218899]